bitfinex/quotes_SOLUSD_20241208
["timestamp","ask_amount","ask_price","bid_price","bid_amount"]
[1733652444654,4.2573,234.89,234.83,8.36028584]
[1733652445651,8.36028584,234.91,234.84,8.36028584]
[1733652449875,8.36028584,234.9,234.83,8.36028584]
[1733652452376,8.36028584,234.91,234.84,13.83858584]
[1733652452869,8.36028584,234.9,234.84,5.4783]
[1733652453241,8.36028584,234.89,234.84,5.4783]
[1733652453868,8.36028584,234.9,234.84,5.4783]
[1733652454569,20.0,234.93,234.86,8.36028584]
[1733652454869,8.36028584,234.93,234.87,8.36028584]
[1733652455640,4.2556,234.99,234.88,8.7631]
[1733652455861,8.36028584,234.96,234.9,8.36028584]
[1733652456059,4.2556,234.99,234.9,8.36028584]
[1733652456267,8.36028584,234.97,234.9,8.36028584]
[1733652457280,4.2556,234.99,234.9,8.36028584]
[1733652457568,8.36028584,234.97,234.91,8.36028584]
[1733652459674,8.36028584,234.98,234.92,8.36028584]
[1733652460249,4.2556,234.99,234.92,8.36028584]
[1733652460453,8.36028584,234.98,234.92,13.78488584]
[1733652460674,8.36028584,235.0,234.94,8.36028584]
[1733652460873,0.4836403,235.01,234.93,8.36028584]
[1733652461075,8.36028584,234.99,234.93,8.36028584]
[1733652461373,0.4836403,235.01,234.93,8.36028584]
[1733652461580,8.36028584,235.0,234.93,8.36028584]
[1733652462281,8.36028584,234.98,234.92,13.78488584]
[1733652462656,8.36028584,234.98,234.92,5.4246]
[1733652463276,8.36028584,234.98,234.92,13.78488584]
[1733652463852,0.4836403,235.01,234.96,8.36028584]
[1733652464053,0.4836403,235.01,234.92,5.4246]
[1733652464359,0.4836403,235.01,234.95,8.36028584]
[1733652464674,8.84392614,235.01,234.95,8.36028584]
[1733652467168,8.36028584,235.0,234.94,8.36028584]
[1733652467363,8.36028584,235.0,234.93,8.36028584]
[1733652467677,8.36028584,234.94,234.92,5.4246]
[1733652468053,8.36028584,234.95,234.92,5.4246]
[1733652470751,8.36028584,234.93,234.88,8.7631]
[1733652470955,8.36028584,234.91,234.88,8.7631]
[1733652472581,8.36028584,234.9,234.88,8.7631]
[1733652472785,8.36028584,234.89,234.82,12.793]
[1733652473092,8.36028584,234.87,234.82,12.793]
[1733652473892,8.36028584,234.86,234.82,12.793]
[1733652474965,5.82930998,234.86,234.82,12.793]
[1733652477894,8.36028584,234.85,234.82,12.793]
[1733652478397,8.36028584,234.86,234.82,12.793]
[1733652478560,20.0,234.92,234.83,8.36028584]
[1733652478762,8.36028584,234.92,234.85,8.36028584]
[1733652479155,8.36028584,234.92,234.82,12.793]
[1733652479377,8.36028584,234.92,234.86,8.36028584]
[1733652479962,8.36028584,234.91,234.85,8.36028584]
[1733652480891,8.36028584,234.9,234.84,8.36028584]
[1733652483274,8.36028584,234.91,234.85,8.36028584]
[1733652484585,8.36028584,234.92,234.82,12.793]
[1733652484789,8.36028584,234.91,234.85,8.36028584]
[1733652486299,8.36028584,234.9,234.84,8.36028584]
[1733652490593,8.36028584,234.86,234.82,12.793]
[1733652490788,8.36028584,234.83,234.82,12.793]
[1733652490991,8.36028584,234.84,234.82,12.793]
[1733652492289,8.36028584,234.83,234.82,12.793]
[1733652492879,8.36028584,234.83,234.62,53.41493804]
[1733652492880,8.36028584,234.83,234.71,11.8858]
[1733652493077,20.0,234.87,234.73,8.36028584]
[1733652493283,20.0,234.87,234.77,8.36028584]
[1733652493476,8.36028584,234.84,234.78,8.36028584]
[1733652493670,20.0,234.87,234.77,8.36028584]
[1733652493671,8.36028584,234.83,234.77,8.36028584]
[1733652494293,8.36028584,234.82,234.76,8.36028584]
[1733652495191,8.36028584,234.83,234.77,8.36028584]
[1733652496197,4.2576,234.88,234.78,8.36028584]
[1733652496504,8.36028584,234.87,234.81,8.36028584]
[1733652497601,4.2568,234.92,234.83,8.36028584]
[1733652497820,8.36028584,234.91,234.84,8.36028584]
[1733652499130,8.36028584,234.93,234.86,8.36028584]
[1733652499315,8.36028584,234.94,234.87,8.36028584]
[1733652499511,8.36028584,234.93,234.87,8.36028584]
[1733652501203,8.36028584,234.93,234.86,8.36028584]
[1733652501596,8.5113,234.99,234.87,8.36028584]
[1733652501821,8.36028584,234.94,234.87,8.36028584]
[1733652502328,8.36028584,234.93,234.86,8.36028584]
[1733652504987,4.2559,234.97,234.87,32.13716984]
[1733652505192,8.36028584,234.94,234.87,32.13716984]
[1733652506427,8.36028584,234.95,234.88,8.36028584]
[1733652507425,8.36028584,234.98,234.91,8.36028584]
[1733652507791,8.36028584,234.99,234.92,8.36028584]
[1733652508101,8.36028584,235.0,234.93,8.36028584]
[1733652508309,8.36028584,234.99,234.92,15.52418584]
[1733652509695,4.7388403,235.01,234.92,15.52418584]
[1733652510008,8.36028584,234.98,234.92,7.1639]
[1733652512106,4.7388403,235.01,234.92,7.1639]
[1733652512107,8.36028584,234.97,234.92,7.1639]
[1733652512300,8.36028584,234.96,234.92,7.1639]
[1733652512623,4.7388403,235.01,234.92,7.1639]
[1733652512791,8.36028584,234.99,234.92,15.52418584]
[1733652512990,8.36028584,234.98,234.92,7.1639]
[1733652513210,8.36028584,234.97,234.92,7.1639]
[1733652518829,4.7388403,235.01,234.92,7.1639]
[1733652519032,8.36028584,234.98,234.92,7.1639]
[1733652521811,4.7388403,235.01,234.92,7.1639]
[1733652522019,8.36028584,234.97,234.92,7.1639]
[1733652522634,8.36028584,234.98,234.92,7.1639]
[1733652523010,4.7388403,235.01,234.92,7.1639]
[1733652523214,8.36028584,234.98,234.92,7.1639]
[1733652525642,8.36028584,234.97,234.92,7.1639]
[1733652527239,8.36028584,234.98,234.92,7.1639]
[1733652529740,0.4836403,235.01,234.97,8.36028584]
[1733652530217,8.36028584,234.99,234.93,4.3474]
[1733652530423,8.36028584,234.98,234.93,4.3474]
[1733652531035,8.36028584,234.99,234.93,12.70768584]
[1733652531209,0.4836403,235.01,234.93,12.70768584]
[1733652531412,8.36028584,234.99,234.93,12.70768584]
[1733652532925,8.36028584,235.0,234.93,12.70768584]
[1733652533740,8.36028584,235.0,234.94,8.36028584]
[1733652534065,8.84392614,235.01,234.95,8.36028584]
[1733652534341,0.4836403,235.01,234.96,8.36028584]
[1733652534922,0.4836403,235.01,234.97,8.36028584]
[1733652535856,0.4836403,235.01,234.96,8.36028584]
[1733652537147,0.4836403,235.01,234.95,8.36028584]
[1733652537356,8.36028584,235.0,234.94,8.36028584]
[1733652537743,8.84392614,235.01,234.95,8.36028584]
[1733652540468,8.84392614,235.01,234.94,150.0]
[1733652540469,8.36028584,234.99,234.94,150.0]
[1733652540979,0.4836403,235.01,234.96,8.36028584]
[1733652543082,0.4836403,235.01,234.97,8.36028584]
[1733652544657,0.4836403,235.01,234.96,8.36028584]
[1733652545444,8.36028584,235.0,234.94,150.0]
[1733652545651,8.36028584,235.0,234.94,158.36028584]
[1733652547168,8.84392614,235.01,234.95,8.36028584]
[1733652550045,8.36028584,235.0,234.94,158.36028584]
[1733652551353,8.36028584,235.0,234.94,150.0]
[1733652551591,8.36028584,234.99,234.94,150.0]
[1733652551951,8.36028584,235.0,234.94,150.0]
[1733652552173,8.36028584,235.0,234.94,158.36028584]
[1733652552560,0.4836403,235.01,234.94,158.36028584]
[1733652552761,8.84392614,235.01,234.95,8.36028584]
[1733652552967,8.36028584,234.98,234.94,150.0]
[1733652553170,8.36028584,234.97,234.94,150.0]
[1733652553483,8.36028584,234.99,234.94,150.0]
[1733652553664,8.36028584,234.97,234.94,150.0]
[1733652553866,8.36028584,234.96,234.94,150.0]
[1733652554683,8.36028584,234.97,234.94,150.0]
[1733652555988,8.36028584,234.95,234.94,150.0]
[1733652559994,4.2559,234.97,234.94,150.0]
[1733652559995,8.36028584,234.96,234.94,150.0]
[1733652560168,12.61618584,234.97,234.94,150.0]
[1733652560560,8.36028584,234.96,234.94,150.0]
[1733652560785,8.36028584,234.95,234.94,150.0]
[1733652561170,8.36028584,234.96,234.94,150.0]
[1733652562569,8.36028584,234.95,234.94,150.0]
[1733652564301,4.2556,234.98,234.94,150.0]
[1733652564465,8.36028584,234.95,234.94,150.0]
[1733652567591,8.36028584,234.95,234.94,140.7411]
[1733652567799,8.36028584,234.95,234.94,131.5879]
[1733652567982,8.36028584,234.95,234.94,127.0744]
[1733652568187,5.0,234.99,234.94,127.0744]
[1733652568485,32.13716984,234.95,234.94,124.5742]
[1733652568684,20.0,234.92,234.81,7.5619]
[1733652568873,8.36028584,234.84,234.81,7.5619]
[1733652569199,20.0,234.92,234.82,8.36028584]
[1733652569405,20.0,234.94,234.85,8.36028584]
[1733652569573,8.36028584,234.92,234.85,8.36028584]
[1733652571477,8.36028584,234.91,234.84,13.06078584]
[1733652571681,8.36028584,234.89,234.84,4.7005]
[1733652571882,8.36028584,234.88,234.84,4.7005]
[1733652573222,8.36028584,234.85,234.81,7.5619]
[1733652573698,8.36028584,234.85,234.79,13.06078584]
[1733652573699,8.36028584,234.83,234.79,4.7005]
[1733652574096,8.36028584,234.85,234.79,13.06078584]
[1733652574607,7.36028584,234.85,234.79,13.06078584]
[1733652575028,3.8661,234.92,234.79,13.06078584]
[1733652575029,4.2578,234.87,234.79,13.06078584]
[1733652575316,8.36028584,234.85,234.79,13.06078584]
[1733652575815,12.61808584,234.87,234.8,8.36028584]
[1733652576186,4.257,234.91,234.82,8.36028584]
[1733652576389,4.257,234.91,234.83,8.36028584]
[1733652576590,8.36028584,234.9,234.83,8.36028584]
[1733652576815,8.36028584,234.9,234.84,15.44738584]
[1733652576989,4.257,234.91,234.85,8.36028584]
[1733652578528,8.36028584,234.92,234.86,8.36028584]
[1733652579501,8.36028584,234.92,234.84,7.0871]
[1733652579502,1.70042048,234.99,234.87,8.36028584]
[1733652579725,8.36028584,234.94,234.87,8.36028584]
[1733652580721,4.2562,234.95,234.88,4.6501]
[1733652581040,8.36028584,234.93,234.88,4.6501]
[1733652581242,8.36028584,234.9,234.84,7.0871]
[1733652581416,8.36028584,234.88,234.84,7.0871]
[1733652581616,20.0,234.93,234.84,7.0871]
[1733652581823,8.36028584,234.89,234.84,7.0871]
[1733652582609,8.36028584,234.88,234.84,7.0871]
[1733652582828,8.36028584,234.88,234.82,4.6501]
[1733652586243,8.36028584,234.87,234.82,4.6501]
[1733652586417,8.36028584,234.85,234.82,4.6501]
[1733652587127,8.36028584,234.86,234.82,4.6501]
[1733652588033,8.36028584,234.85,234.82,4.6501]
[1733652588439,8.36028584,234.86,234.82,4.6501]
[1733652589021,4.2574,234.89,234.82,4.6501]
[1733652589233,8.36028584,234.86,234.82,4.6501]
[1733652591338,8.36028584,234.87,234.82,4.6501]
[1733652591844,8.36028584,234.88,234.82,4.6501]
[1733652592537,4.2574,234.89,234.83,8.36028584]
[1733652592853,8.36028584,234.91,234.84,8.36028584]
[1733652593066,12.61688584,234.93,234.86,8.36028584]
[1733652593348,8.36028584,234.92,234.85,8.36028584]
[1733652593934,8.36028584,234.92,234.82,4.6501]
[1733652593935,8.36028584,234.91,234.84,8.36028584]
[1733652595355,8.36028584,234.9,234.84,8.36028584]
[1733652595531,8.36028584,234.9,234.82,4.6501]
[1733652596029,8.36028584,234.9,234.84,8.36028584]
[1733652596714,8.36028584,234.91,234.84,8.36028584]
[1733652597353,20.0,234.94,234.86,8.36028584]
[1733652597645,8.5117,234.97,234.87,15.82098584]
[1733652597952,8.36028584,234.93,234.87,15.82098584]
[1733652598320,8.36028584,234.94,234.88,8.36028584]
[1733652599928,4.2563,234.95,234.9,8.36028584]
[1733652600235,8.36028584,234.98,234.92,8.36028584]
[1733652600443,12.61588584,234.99,234.92,8.36028584]
[1733652600644,8.36028584,234.98,234.92,8.36028584]
[1733652601936,8.36028584,234.96,234.91,4.3577]
[1733652602254,8.36028584,234.95,234.91,4.3577]
[1733652602422,4.2556,234.99,234.91,4.3577]
[1733652602630,8.36028584,234.97,234.91,4.3577]
[1733652602830,8.36028584,234.97,234.91,12.71798584]
[1733652603142,8.36028584,234.98,234.92,8.36028584]
[1733652603673,12.61588584,234.99,234.93,8.36028584]
[1733652604672,8.36028584,234.98,234.92,8.36028584]
[1733652604947,8.36028584,234.97,234.91,12.71798584]
[1733652605152,8.36028584,234.96,234.91,4.3577]
[1733652605453,8.36028584,234.95,234.91,4.3577]
[1733652606247,4.256,234.96,234.87,7.4607]
[1733652606248,8.36028584,234.92,234.87,7.4607]
[1733652606429,8.36028584,234.91,234.87,7.4607]
[1733652607454,8.36028584,234.9,234.87,7.4607]
[1733652608229,8.36028584,234.91,234.87,7.4607]
[1733652608960,8.36028584,234.89,234.87,7.4607]
[1733652609127,8.36028584,234.9,234.87,7.4607]
[1733652609532,8.36028584,234.91,234.87,7.4607]
[1733652609730,10.2394738,234.96,234.87,7.4607]
[1733652609731,8.36028584,234.92,234.87,7.4607]
[1733652609948,12.61698584,234.92,234.87,7.4607]
[1733652610969,8.36028584,234.94,234.87,15.82098584]
[1733652611451,8.36028584,234.93,234.87,15.82098584]
[1733652613674,8.36028584,234.94,234.87,15.82098584]
[1733652615146,8.36028584,234.91,234.87,7.4607]
[1733652615442,12.61678584,234.93,234.87,7.4607]
[1733652615967,8.36028584,234.94,234.88,8.36028584]
[1733652616172,12.61628584,234.97,234.91,8.36028584]
[1733652616555,8.36028584,234.96,234.9,8.36028584]
[1733652616758,4.256,234.97,234.87,15.82098584]
[1733652616759,8.36028584,234.93,234.87,15.82098584]
[1733652616958,8.36028584,234.92,234.87,7.4607]
[1733652617172,8.5109,235.0,234.87,7.4607]
[1733652617173,8.36028584,234.91,234.87,7.4607]
[1733652618675,8.36028584,234.93,234.87,7.4607]
[1733652618854,8.36028584,234.93,234.87,15.82098584]
[1733652619679,12.61668584,234.94,234.88,8.36028584]
[1733652619846,23.776884,234.98,234.87,7.4607]
[1733652619847,28.36028584,234.96,234.89,8.36028584]
[1733652620252,8.36028584,234.95,234.89,8.36028584]
[1733652620553,8.36028584,234.94,234.88,8.36028584]
[1733652620769,12.7662,235.0,234.88,8.36028584]
[1733652620952,8.36028584,234.94,234.88,8.36028584]
[1733652621467,8.36028584,234.93,234.87,7.4607]
[1733652622276,8.5109,235.0,234.87,7.4607]
[1733652622277,8.36028584,234.92,234.87,7.4607]
[1733652623973,4.2566,234.93,234.87,15.82098584]
[1733652624150,12.61688584,234.93,234.87,15.82098584]
[1733652625065,8.36028584,234.95,234.88,8.36028584]
[1733652625379,8.36028584,234.95,234.89,8.36028584]
[1733652625982,4.7388403,235.01,234.94,21.12418584]
[1733652626150,4.7388403,235.01,234.95,8.36028584]
[1733652626676,13.09912614,235.01,234.95,8.36028584]
[1733652626870,8.36028584,234.97,234.94,12.7639]
[1733652627047,8.36028584,234.97,234.94,4.8938]
[1733652627467,8.36028584,234.96,234.94,4.8938]
[1733652627974,8.36028584,234.96,234.89,12.7639]
[1733652628152,8.36028584,234.96,234.89,21.12418584]
[1733652629860,8.36028584,234.95,234.89,12.7639]
[1733652630059,4.2558,234.98,234.89,21.12418584]
[1733652630277,8.36028584,234.95,234.89,21.12418584]
[1733652630663,8.36028584,234.95,234.89,12.7639]
[1733652630872,8.36028584,234.94,234.89,12.7639]
[1733652631079,8.36028584,234.93,234.89,12.7639]
[1733652631279,8.36028584,234.92,234.89,12.7639]
[1733652633177,8.36028584,234.92,234.85,8.36028584]
[1733652633379,8.36028584,234.91,234.85,8.36028584]
[1733652633783,8.36028584,234.89,234.83,21.12418584]
[1733652635288,4.2567,234.92,234.83,12.7639]
[1733652635289,8.36028584,234.88,234.83,12.7639]
[1733652636890,12.61788584,234.87,234.83,12.7639]
[1733652637568,8.36028584,234.86,234.83,12.7639]
[1733652638289,4.2576,234.87,234.83,12.7639]
[1733652638493,8.36028584,234.84,234.77,12.4422]
[1733652638675,8.36028584,234.83,234.77,12.4422]
[1733652639096,8.36028584,234.83,234.77,20.80248584]
[1733652639489,8.36028584,234.81,234.77,12.4422]
[1733652640461,20.0,234.91,234.79,8.36028584]
[1733652640777,8.5128,234.94,234.86,8.36028584]
[1733652640980,8.36028584,234.93,234.87,8.36028584]
[1733652641172,8.5128,234.94,234.77,12.4422]
[1733652641500,8.5128,234.94,234.78,28.631484]
[1733652641711,4.2569,234.91,234.86,8.36028584]
[1733652642004,8.36028584,234.9,234.84,8.36028584]
[1733652642995,8.5128,234.94,234.85,8.36028584]
[1733652643188,8.36028584,234.91,234.85,8.36028584]
[1733652644082,8.36028584,234.9,234.84,8.36028584]
[1733652644265,12.61738584,234.9,234.84,8.36028584]
[1733652645694,4.2571,234.9,234.84,8.36028584]
[1733652645869,20.0,234.91,234.85,8.36028584]
[1733652646072,8.36028584,234.92,234.85,8.36028584]
[1733652647193,12.61718584,234.91,234.84,8.36028584]
[1733652650930,8.36028584,234.9,234.83,8.36028584]
[1733652651300,8.36028584,234.9,234.78,4.8546]
[1733652651512,8.36028584,234.9,234.83,8.36028584]
[1733652652003,8.36028584,234.87,234.78,4.8546]
[1733652652194,8.36028584,234.84,234.78,4.8546]
[1733652653311,12.61848584,234.84,234.78,4.8546]
[1733652655403,8.36028584,234.81,234.78,4.8546]
[1733652655607,8.36028584,234.8,234.78,4.8546]
[1733652655795,8.36028584,234.8,234.77,7.5876]
[1733652656739,8.36028584,234.79,234.73,13.13888584]
[1733652656905,23.776884,234.87,234.73,4.7786]
[1733652656906,8.36028584,234.78,234.73,4.7786]
[1733652657108,8.36028584,234.79,234.73,13.13888584]
[1733652657428,8.36028584,234.78,234.73,4.7786]
[1733652658728,12.61948584,234.79,234.73,4.7786]
[1733652659041,8.36028584,234.81,234.75,8.36028584]
[1733652659232,28.36028584,234.84,234.78,8.36028584]
[1733652659435,12.7729,234.87,234.78,8.36028584]
[1733652659728,12.7729,234.87,234.77,8.36028584]
[1733652659729,8.36028584,234.84,234.77,8.36028584]
[1733652660314,12.61848584,234.84,234.78,8.36028584]
[1733652660513,12.61848584,234.84,234.77,8.36028584]
[1733652662049,12.61848584,234.84,234.78,8.36028584]
[1733652662746,8.36028584,234.83,234.77,8.36028584]
[1733652663051,8.36028584,234.83,234.73,4.7786]
[1733652663253,8.36028584,234.84,234.78,8.36028584]
[1733652665656,8.36028584,234.84,234.77,8.36028584]
[1733652666158,8.36028584,234.83,234.76,8.36028584]
[1733652667124,4.2581,234.85,234.77,8.36028584]
[1733652667419,8.36028584,234.84,234.77,8.36028584]
[1733652669451,8.36028584,234.83,234.76,8.36028584]
[1733652669848,8.36028584,234.82,234.75,8.36028584]
[1733652670030,8.36028584,234.81,234.75,8.36028584]
[1733652672338,8.36028584,234.82,234.75,8.36028584]
[1733652673051,8.36028584,234.83,234.76,8.36028584]
[1733652673228,8.36028584,234.84,234.77,8.36028584]
[1733652674043,12.7723,234.88,234.73,4.7786]
[1733652674044,4.2574,234.88,234.82,8.36028584]
[1733652674446,13.147,234.94,234.73,4.7786]
[1733652674447,8.36028584,234.91,234.84,8.36028584]
[1733652676728,8.36028584,234.89,234.81,4.7786]
[1733652676932,8.36028584,234.85,234.75,4.9258]
[1733652677146,8.36028584,234.84,234.77,8.36028584]
[1733652677637,4.2573,234.89,234.75,4.9258]
[1733652677638,8.36028584,234.86,234.79,8.36028584]
[1733652677838,8.36028584,234.87,234.8,8.36028584]
[1733652678956,20.0,234.91,234.8,8.36028584]
[1733652679162,20.0,234.9,234.83,8.36028584]
[1733652679468,8.36028584,234.89,234.83,8.36028584]
[1733652680041,8.36028584,234.89,234.82,8.36028584]
[1733652680563,24.2571,234.9,234.82,8.36028584]
[1733652680941,8.36028584,234.89,234.82,8.36028584]
[1733652682540,8.36028584,234.89,234.83,8.36028584]
[1733652683359,4.2571,234.9,234.85,8.36028584]
[1733652683739,8.36028584,234.93,234.87,8.36028584]
[1733652684144,8.36028584,234.92,234.82,7.6826]
[1733652684445,8.36028584,234.92,234.86,8.36028584]
[1733652684646,8.36028584,234.93,234.87,8.36028584]
[1733652684850,4.2565,234.94,234.83,4.9258]
[1733652685053,8.36028584,234.97,234.9,8.36028584]
[1733652685246,8.36028584,234.96,234.9,8.36028584]
[1733652686484,20.0,234.97,234.9,8.36028584]
[1733652686984,4.2558,234.98,234.91,8.36028584]
[1733652687154,12.61608584,234.98,234.91,8.36028584]
[1733652687661,12.61608584,234.98,234.87,20.0]
[1733652687966,12.61608584,234.98,234.91,8.36028584]
[1733652688750,4.2558,234.98,234.92,8.36028584]
[1733652689798,8.36028584,235.0,234.93,8.36028584]
[1733652689958,8.84392614,235.01,234.94,8.36028584]
[1733652691055,0.4836403,235.01,234.95,8.36028584]
[1733652691584,0.4836403,235.01,234.96,8.36028584]
[1733652692666,0.4836403,235.01,234.97,8.36028584]
[1733652694375,0.4836403,235.01,234.99,8.36028584]
[1733652694901,0.4836403,235.01,234.97,8.36028584]
[1733652695370,0.4836403,235.01,234.96,8.36028584]
[1733652696372,0.4836403,235.01,234.98,8.36028584]
[1733652698094,0.4836403,235.01,234.97,8.36028584]
[1733652699979,0.4836403,235.01,234.98,8.36028584]
[1733652700165,0.4836403,235.01,234.99,8.36028584]
[1733652700365,0.4836403,235.01,234.96,2.0]
[1733652700366,0.4836403,235.01,235.0,8.36028584]
[1733652702298,0.4836403,235.01,234.99,8.36028584]
[1733652704817,0.4836403,235.01,234.98,8.36028584]
[1733652705498,0.4836403,235.01,234.99,8.36028584]
[1733652706206,0.4836403,235.01,235.0,8.36028584]
[1733652713294,0.4836403,235.01,234.98,5.039]
[1733652713506,0.4836403,235.01,235.0,8.36028584]
[1733652714415,0.4836403,235.01,234.98,5.039]
[1733652714621,0.4836403,235.01,235.0,8.36028584]
[1733652715687,0.4836403,235.01,235.0,10.36028584]
[1733652718501,0.4836403,235.01,235.0,2.0]
[1733652723431,8.84392614,235.01,235.0,2.0]
[1733652724628,0.4836403,235.01,235.0,2.0]
[1733652725399,8.36028584,235.03,234.97,8.36028584]
[1733652726429,1.69776884,235.1,234.99,8.36028584]
[1733652726619,4.2543,235.06,235.01,8.36028584]
[1733652727929,8.36028584,235.08,235.01,8.36028584]
[1733652729407,12.61418584,235.08,235.01,8.36028584]
[1733652730129,4.2539,235.08,235.01,8.36028584]
[1733652730338,4.2539,235.08,235.02,8.36028584]
[1733652730506,12.61418584,235.08,235.02,8.36028584]
[1733652730933,12.61418584,235.08,235.01,8.36028584]
[1733652731610,12.61418584,235.08,234.93,23.776884]
[1733652731611,8.36028584,235.07,235.0,8.36028584]
[1733652733935,4.2539,235.08,235.01,8.36028584]
[1733652733936,12.61418584,235.08,235.01,8.36028584]
[1733652734125,4.2539,235.08,235.03,8.36028584]
[1733652735141,8.36028584,235.11,235.05,8.36028584]
[1733652735322,8.36028584,235.1,235.04,8.36028584]
[1733652736821,8.36028584,235.1,234.98,7.7467]
[1733652736822,8.36028584,235.09,235.03,8.36028584]
[1733652737018,8.36028584,235.09,235.02,8.36028584]
[1733652737225,12.61398584,235.09,235.02,8.36028584]
[1733652738313,12.61398584,235.09,235.03,8.36028584]
[1733652738525,8.36028584,235.11,235.04,8.36028584]
[1733652739545,8.36028584,235.1,235.04,8.36028584]
[1733652740239,8.36028584,235.1,235.03,8.36028584]
[1733652740837,8.36028584,235.08,234.98,7.7467]
[1733652741045,8.36028584,235.07,235.0,8.36028584]
[1733652741618,8.506,235.13,235.01,8.36028584]
[1733652741958,8.36028584,235.09,235.03,8.36028584]
[1733652742136,8.36028584,235.08,235.02,8.36028584]
[1733652742336,23.776884,235.12,235.02,8.36028584]
[1733652742527,8.36028584,235.09,235.02,8.36028584]
[1733652742862,4.2536,235.1,235.04,8.36028584]
[1733652743339,12.61388584,235.1,235.04,8.36028584]
[1733652744646,12.61388584,235.1,235.03,8.36028584]
[1733652745145,8.36028584,235.09,235.02,8.36028584]
[1733652748234,8.36028584,235.1,235.03,8.36028584]
[1733652748536,8.36028584,235.11,235.04,8.36028584]
[1733652748740,8.506,235.13,235.04,8.36028584]
[1733652748928,8.36028584,235.11,235.04,8.36028584]
[1733652750750,8.506,235.13,235.04,8.36028584]
[1733652750937,4.2534,235.11,235.04,8.36028584]
[1733652751257,8.36028584,235.1,235.04,8.36028584]
[1733652751635,4.2534,235.11,235.04,8.36028584]
[1733652751826,8.36028584,235.1,235.04,8.36028584]
[1733652752532,8.36028584,235.1,235.03,8.36028584]
[1733652753022,8.36028584,235.1,235.04,8.36028584]
[1733652753224,8.36028584,235.1,234.98,7.7467]
[1733652753536,8.36028584,235.1,235.03,8.36028584]
[1733652753732,12.61368584,235.11,235.04,8.36028584]
[1733652754132,4.2534,235.11,235.05,8.36028584]
[1733652755237,4.2526,235.15,235.08,8.36028584]
[1733652755555,12.61288584,235.15,235.08,8.36028584]
[1733652757458,12.61288584,235.15,235.09,8.36028584]
[1733652757634,8.36028584,235.14,235.03,4.6053]
[1733652757839,8.36028584,235.13,235.07,8.36028584]
[1733652758358,4.2526,235.15,235.07,8.36028584]
[1733652758531,8.36028584,235.14,235.08,8.36028584]
[1733652759328,12.61288584,235.15,235.08,8.36028584]
[1733652759651,8.36028584,235.14,235.08,8.36028584]
[1733652760363,8.36028584,235.14,235.07,8.36028584]
[1733652761159,8.36028584,235.13,235.03,4.6053]
[1733652761338,8.36028584,235.11,235.03,4.6053]
[1733652761845,8.36028584,235.11,235.05,8.36028584]
[1733652763348,8.36028584,235.11,235.04,8.36028584]
[1733652763868,8.36028584,235.1,235.04,8.36028584]
[1733652766066,8.5047,235.17,234.98,7.7467]
[1733652766067,8.36028584,235.09,234.98,7.7467]
[1733652766269,8.36028584,235.09,235.03,8.36028584]
[1733652766442,8.36028584,235.09,234.98,7.7467]
[1733652766640,8.36028584,235.09,235.03,8.36028584]
[1733652767663,8.36028584,235.09,234.98,7.7467]
[1733652767837,8.36028584,235.05,234.98,7.7467]
[1733652768183,8.36028584,235.06,235.0,8.36028584]
[1733652768876,8.36028584,235.05,234.99,8.36028584]
[1733652769051,8.36028584,235.04,234.98,8.36028584]
[1733652769252,8.36028584,235.03,234.97,8.36028584]
[1733652770054,8.36028584,235.03,234.95,8.36028584]
[1733652770244,8.36028584,235.02,234.95,8.36028584]
[1733652770683,8.36028584,235.0,234.94,8.36028584]
[1733652770847,8.36028584,234.99,234.93,8.36028584]
[1733652771365,8.36028584,234.96,234.86,4.6053]
[1733652771568,8.36028584,234.95,234.86,4.6053]
[1733652771768,8.36028584,234.97,234.9,8.36028584]
[1733652772072,8.36028584,234.97,234.91,8.36028584]
[1733652772771,8.36028584,234.94,234.88,8.36028584]
[1733652773578,8.36028584,234.95,234.89,8.36028584]
[1733652773958,4.2551,235.01,234.91,8.36028584]
[1733652774270,8.36028584,234.99,234.93,8.36028584]
[1733652774447,4.2551,235.01,234.93,8.36028584]
[1733652774653,8.36028584,234.99,234.93,8.36028584]
[1733652775062,8.36028584,234.98,234.92,8.36028584]
[1733652778550,8.36028584,234.99,234.92,8.36028584]
[1733652780658,4.2551,235.01,234.93,8.36028584]
[1733652780878,4.2551,235.01,234.95,8.36028584]
[1733652781072,12.61538584,235.01,234.95,8.36028584]
[1733652781272,12.61538584,235.01,234.87,23.776884]
[1733652781273,8.36028584,235.0,234.94,8.36028584]
[1733652781665,8.36028584,234.99,234.92,8.36028584]
[1733652781863,8.36028584,234.98,234.91,8.36028584]
[1733652782781,8.36028584,234.98,234.92,8.36028584]